[Event "*** MasterClass Titled Tuesday Blitz"]
[Site "Chess.com"]
[Date "2017.11.07"]
[Round "7"]
[White "tango_argentino"]
[Black "Robin-Side"]
[Result "1-0"]
[WhiteElo "2506"]
[BlackElo "2598"]
[TimeControl "180+2"]
[EndTime "15:40:05 PST"]
[Termination "tango_argentino won on time"]

1. e4 {[%clk 0:02:43.9]} 1... g6 {[%clk 0:03:01.8]} 2. d4 {[%clk 0:02:44.7]}
2... Bg7 {[%clk 0:03:03]} 3. Nc3 {[%clk 0:02:45.8]} 3... e6 {[%clk 0:03:03.8]}
4. f4 {[%clk 0:02:41.6]} 4... Ne7 {[%clk 0:03:04.6]} 5. Nf3 {[%clk 0:02:43.1]}
5... d5 {[%clk 0:03:05.8]} 6. Be3 {[%clk 0:02:38.8]} 6... dxe4 {[%clk
0:02:49.4]} 7. Nxe4 {[%clk 0:02:40.7]} 7... Nd5 {[%clk 0:02:50.4]} 8. Qd2 {[%clk
0:02:41.5]} 8... O-O {[%clk 0:02:45.5]} 9. O-O-O {[%clk 0:02:41.9]} 9... Nxe3
{[%clk 0:02:41.7]} 10. Qxe3 {[%clk 0:02:43.8]} 10... b6 {[%clk 0:02:38.4]} 11.
h4 {[%clk 0:02:39.6]} 11... Bb7 {[%clk 0:02:37.3]} 12. h5 {[%clk 0:02:38.4]}
12... Nd7 {[%clk 0:02:36]} 13. hxg6 {[%clk 0:02:35.9]} 13... hxg6 {[%clk
0:02:37.9]} 14. Nfg5 {[%clk 0:02:36]} 14... Re8 {[%clk 0:02:09.7]} 15. Nxf7
{[%clk 0:02:25.9]} 15... Kxf7 {[%clk 0:02:09.9]} 16. Ng5+ {[%clk 0:02:25.2]}
16... Kg8 {[%clk 0:02:06.2]} 17. Qh3 {[%clk 0:02:09]} 17... Nf8 {[%clk
0:02:03.8]} 18. c3 {[%clk 0:01:55.9]} 18... Qf6 {[%clk 0:02:00.4]} 19. g3 {[%clk
0:01:55.5]} 19... Bxh1 {[%clk 0:01:57]} 20. Qxh1 {[%clk 0:01:54]} 20... Rad8
{[%clk 0:01:56.8]} 21. Bc4 {[%clk 0:01:53.8]} 21... c5 {[%clk 0:01:40.9]} 22. d5
{[%clk 0:01:52.1]} 22... Rd6 {[%clk 0:00:39.2]} 23. Ne4 {[%clk 0:01:35.5]} 23...
Qe7 {[%clk 0:00:27.2]} 24. Nxd6 {[%clk 0:01:36.2]} 24... Qxd6 {[%clk 0:00:29.1]}
25. dxe6 {[%clk 0:01:37.9]} 25... Qe7 {[%clk 0:00:18.7]} 26. Rd7 {[%clk
0:00:51.8]} 26... Qf6 {[%clk 0:00:16.2]} 27. Rf7 {[%clk 0:00:37.9]} 27... Nxe6
{[%clk 0:00:06.1]} 28. Rxf6 {[%clk 0:00:37.3]} 28... Bxf6 {[%clk 0:00:08]} 29.
Qb7 {[%clk 0:00:35.7]} 29... Re7 {[%clk 0:00:04.4]} 30. Qc8+ {[%clk 0:00:35.7]}
30... Kf7 {[%clk 0:00:05.3]} 31. g4 {[%clk 0:00:36.9]} 31... Kg7 {[%clk
0:00:04.2]} 32. Bxe6 {[%clk 0:00:37.4]} 1-0

[Event "*** MasterClass Titled Tuesday Blitz"]
[Site "Chess.com"]
[Date "2017.11.07"]
[Round "7"]
[White "PenguinPacks"]
[Black "pandamaster3000"]
[Result "1-0"]
[WhiteElo "2193"]
[BlackElo "2279"]
[TimeControl "180+2"]
[EndTime "15:40:09 PST"]
[Termination "PenguinPacks won by checkmate"]

1. e4 {[%clk 0:02:59.6]} 1... e6 {[%clk 0:03:00.8]} 2. d4 {[%clk 0:03:00.5]}
2... d5 {[%clk 0:03:02.7]} 3. Nc3 {[%clk 0:03:01.9]} 3... Nf6 {[%clk 0:03:02.5]}
4. e5 {[%clk 0:03:03.2]} 4... Nfd7 {[%clk 0:03:04]} 5. f4 {[%clk 0:03:04.7]}
5... c5 {[%clk 0:03:05.6]} 6. Nf3 {[%clk 0:03:06]} 6... Nc6 {[%clk 0:03:07.3]}
7. Be3 {[%clk 0:03:06.9]} 7... a6 {[%clk 0:03:08.9]} 8. Qd2 {[%clk 0:03:08.1]}
8... b5 {[%clk 0:03:10.4]} 9. a3 {[%clk 0:03:08.5]} 9... cxd4 {[%clk 0:03:08.7]}
10. Nxd4 {[%clk 0:03:09.2]} 10... Nxd4 {[%clk 0:03:10]} 11. Bxd4 {[%clk
0:03:10.3]} 11... Bc5 {[%clk 0:03:11.1]} 12. Ne2 {[%clk 0:03:11.5]} 12... Qb6
{[%clk 0:03:11.2]} 13. b4 {[%clk 0:03:11.8]} 13... Bxd4 {[%clk 0:03:12]} 14.
Nxd4 {[%clk 0:03:13.7]} 14... O-O {[%clk 0:02:50.7]} 15. c3 {[%clk 0:03:13.4]}
15... f6 {[%clk 0:02:15.1]} 16. Qe3 {[%clk 0:03:14.1]} 16... Bb7 {[%clk
0:02:03.6]} 17. Bd3 {[%clk 0:03:11.3]} 17... Rac8 {[%clk 0:01:56.3]} 18. O-O
{[%clk 0:02:52.8]} 18... f5 {[%clk 0:01:44.9]} 19. Rac1 {[%clk 0:02:45]} 19...
Rfe8 {[%clk 0:01:19.4]} 20. Kh1 {[%clk 0:02:42.8]} 20... Rc7 {[%clk 0:01:17.5]}
21. Rg1 {[%clk 0:02:36.2]} 21... Rec8 {[%clk 0:01:17.3]} 22. Bb1 {[%clk
0:02:33.7]} 22... Nb8 {[%clk 0:01:13.1]} 23. g4 {[%clk 0:01:41.2]} 23... fxg4
{[%clk 0:00:35.1]} 24. Rxg4 {[%clk 0:01:32.8]} 24... Nc6 {[%clk 0:00:21.1]} 25.
Qh3 {[%clk 0:01:13.7]} 25... g6 {[%clk 0:00:07]} 26. Bxg6 {[%clk 0:00:52.8]}
26... hxg6 {[%clk 0:00:06.3]} 27. Rxg6+ {[%clk 0:00:54.1]} 27... Rg7 {[%clk
0:00:05.9]} 28. Rxg7+ {[%clk 0:00:55.5]} 28... Kxg7 {[%clk 0:00:07.5]} 29. Rg1+
{[%clk 0:00:56.8]} 29... Kf8 {[%clk 0:00:06.4]} 30. Qh6+ {[%clk 0:00:30.8]}
30... Ke8 {[%clk 0:00:02.4]} 31. Rg8+ {[%clk 0:00:22.6]} 31... Kd7 {[%clk
0:00:03.7]} 32. Qxe6+ {[%clk 0:00:23.5]} 32... Kc7 {[%clk 0:00:04.6]} 33. Qd6#
{[%clk 0:00:24.7]} 1-0

[Event "*** MasterClass Titled Tuesday Blitz"]
[Site "Chess.com"]
[Date "2017.11.07"]
[Round "7"]
[White "PositionalGenius"]
[Black "Hasangatin_Ramil"]
[Result "0-1"]
[WhiteElo "2401"]
[BlackElo "2452"]
[TimeControl "180+2"]
[EndTime "15:40:11 PST"]
[Termination "Hasangatin_Ramil won by resignation"]

1. e4 {[%clk 0:03:01.9]} 1... d5 {[%clk 0:02:57.3]} 2. exd5 {[%clk 0:03:01.1]}
2... Qxd5 {[%clk 0:02:59.2]} 3. Nc3 {[%clk 0:03:01.4]} 3... Qd6 {[%clk
0:03:00.6]} 4. d4 {[%clk 0:03:01.3]} 4... Nf6 {[%clk 0:03:01.8]} 5. Nf3 {[%clk
0:03:02.3]} 5... c6 {[%clk 0:03:03.1]} 6. Ne5 {[%clk 0:03:03.3]} 6... Nbd7
{[%clk 0:03:03.6]} 7. Nc4 {[%clk 0:03:04.4]} 7... Qc7 {[%clk 0:03:03.2]} 8. Qf3
{[%clk 0:03:05.3]} 8... Nb6 {[%clk 0:03:04.2]} 9. Bf4 {[%clk 0:03:05.2]} 9...
Qd8 {[%clk 0:03:05.2]} 10. Ne5 {[%clk 0:02:57.1]} 10... Be6 {[%clk 0:03:05.1]}
11. O-O-O {[%clk 0:02:46.2]} 11... Nbd5 {[%clk 0:03:05]} 12. Bg3 {[%clk
0:02:39.4]} 12... Qa5 {[%clk 0:03:01.6]} 13. Bc4 {[%clk 0:02:12.5]} 13... Nxc3
{[%clk 0:02:58.9]} 14. Qxc3 {[%clk 0:02:13.4]} 14... Qxc3 {[%clk 0:02:58.5]} 15.
bxc3 {[%clk 0:02:15.3]} 15... Bxc4 {[%clk 0:02:52.1]} 16. Nxc4 {[%clk
0:02:17.2]} 16... Nd5 {[%clk 0:02:47.3]} 17. Kd2 {[%clk 0:02:13]} 17... e6
{[%clk 0:02:46.3]} 18. Na5 {[%clk 0:01:54.7]} 18... O-O-O {[%clk 0:02:38.6]} 19.
Rb1 {[%clk 0:01:55.3]} 19... Nb6 {[%clk 0:02:38.4]} 20. Kd3 {[%clk 0:01:49.8]}
20... Rd5 {[%clk 0:02:38.2]} 21. Nc4 {[%clk 0:01:37.9]} 21... Nxc4 {[%clk
0:02:35.6]} 22. Kxc4 {[%clk 0:01:39.8]} 22... Bd6 {[%clk 0:02:34.1]} 23. Bxd6
{[%clk 0:01:33.5]} 23... Rxd6 {[%clk 0:02:34.5]} 24. Rb3 {[%clk 0:01:29.9]}
24... Rhd8 {[%clk 0:02:32.9]} 25. Re1 {[%clk 0:01:29.9]} 25... Rd5 {[%clk
0:02:32.2]} 26. Ra3 {[%clk 0:01:23]} 26... a6 {[%clk 0:02:29.6]} 27. Rb3 {[%clk
0:01:11.3]} 27... Kc7 {[%clk 0:02:28.8]} 28. g3 {[%clk 0:01:09.1]} 28... Ra5
{[%clk 0:02:26.8]} 29. Rb2 {[%clk 0:01:09.6]} 29... b5+ {[%clk 0:02:26.7]} 30.
Kd3 {[%clk 0:01:10.2]} 30... Ra4 {[%clk 0:02:27.6]} 31. f4 {[%clk 0:01:08.3]}
31... Rd5 {[%clk 0:02:27.5]} 32. Re5 {[%clk 0:00:55.3]} 32... Kd6 {[%clk
0:02:27.6]} 33. Ke4 {[%clk 0:00:52.1]} 33... f6 {[%clk 0:02:20.5]} 34. Rxd5+
{[%clk 0:00:51.7]} 34... exd5+ {[%clk 0:02:06.2]} 35. Kd3 {[%clk 0:00:51.9]}
35... h5 {[%clk 0:02:06.1]} 36. h3 {[%clk 0:00:47.5]} 36... Ra3 {[%clk
0:02:06.4]} 37. g4 {[%clk 0:00:43.8]} 37... h4 {[%clk 0:02:05.1]} 38. Kd2 {[%clk
0:00:42.4]} 38... a5 {[%clk 0:02:03.6]} 39. f5 {[%clk 0:00:27.1]} 39... Kd7
{[%clk 0:02:01.6]} 40. Kd3 {[%clk 0:00:22.7]} 40... Ke7 {[%clk 0:01:51.8]} 41.
Kd2 {[%clk 0:00:22.7]} 41... Kf7 {[%clk 0:01:52.8]} 42. Kd3 {[%clk 0:00:23]}
42... Kg8 {[%clk 0:01:53.9]} 43. Kd2 {[%clk 0:00:20.9]} 43... Kh7 {[%clk
0:01:54.9]} 44. Kd3 {[%clk 0:00:19.1]} 44... Kh6 {[%clk 0:01:55.7]} 45. Kd2
{[%clk 0:00:17.3]} 45... Kg5 {[%clk 0:01:56.7]} 46. Rb1 {[%clk 0:00:17.8]} 46...
b4 {[%clk 0:01:54.8]} 47. Rb3 {[%clk 0:00:17.4]} 47... Rxb3 {[%clk 0:01:49.4]}
48. cxb3 {[%clk 0:00:19.3]} 48... Kf4 {[%clk 0:01:49.2]} 49. cxb4 {[%clk
0:00:18.5]} 49... axb4 {[%clk 0:01:49]} 0-1

[Event "*** MasterClass Titled Tuesday Blitz"]
[Site "Chess.com"]
[Date "2017.11.07"]
[Round "7"]
[White "hypert"]
[Black "Too_Stupid_To_Play"]
[Result "0-1"]
[WhiteElo "2326"]
[BlackElo "2210"]
[TimeControl "180+2"]
[EndTime "15:40:13 PST"]
[Termination "Too_Stupid_To_Play won on time"]

1. e4 {[%clk 0:02:45.1]} 1... c5 {[%clk 0:03:00.8]} 2. Nf3 {[%clk 0:02:45.2]}
2... d6 {[%clk 0:03:02]} 3. Bb5+ {[%clk 0:02:44.9]} 3... Bd7 {[%clk 0:03:01.4]}
4. Bxd7+ {[%clk 0:02:45.4]} 4... Qxd7 {[%clk 0:03:03.3]} 5. O-O {[%clk
0:02:46.1]} 5... Nc6 {[%clk 0:03:05.2]} 6. c4 {[%clk 0:02:46.5]} 6... Nf6 {[%clk
0:03:06.3]} 7. Nc3 {[%clk 0:02:47.2]} 7... g6 {[%clk 0:03:07.6]} 8. d4 {[%clk
0:02:48.6]} 8... cxd4 {[%clk 0:03:08.5]} 9. Nxd4 {[%clk 0:02:50.3]} 9... Bg7
{[%clk 0:03:09.9]} 10. Nde2 {[%clk 0:02:48.4]} 10... O-O {[%clk 0:03:08.7]} 11.
f3 {[%clk 0:02:49.9]} 11... Rac8 {[%clk 0:03:04.2]} 12. Be3 {[%clk 0:02:49.9]}
12... Ne5 {[%clk 0:03:00.9]} 13. b3 {[%clk 0:02:50.5]} 13... a6 {[%clk 0:03:01]}
14. Rc1 {[%clk 0:02:49.7]} 14... b5 {[%clk 0:03:00.8]} 15. cxb5 {[%clk 0:02:47]}
15... axb5 {[%clk 0:03:02.7]} 16. a3 {[%clk 0:02:41.7]} 16... Qb7 {[%clk
0:02:58.3]} 17. Nd4 {[%clk 0:02:38.1]} 17... b4 {[%clk 0:02:54.4]} 18. axb4
{[%clk 0:02:28.6]} 18... Qxb4 {[%clk 0:02:56.3]} 19. Qd2 {[%clk 0:02:29.2]}
19... Rfe8 {[%clk 0:02:06]} 20. h3 {[%clk 0:02:02.1]} 20... Ned7 {[%clk
0:01:47.1]} 21. Nce2 {[%clk 0:01:39]} 21... Rb8 {[%clk 0:01:32.6]} 22. Qxb4
{[%clk 0:01:33]} 22... Rxb4 {[%clk 0:01:34.5]} 23. Bd2 {[%clk 0:01:26.1]} 23...
Rb6 {[%clk 0:01:29.1]} 24. Ba5 {[%clk 0:01:24.6]} 24... Rb7 {[%clk 0:01:24.8]}
25. b4 {[%clk 0:01:24.8]} 25... Ne5 {[%clk 0:01:13]} 26. Nc6 {[%clk 0:01:14.9]}
26... Bh6 {[%clk 0:01:07.3]} 27. f4 {[%clk 0:01:07.9]} 27... Nxc6 {[%clk
0:01:06.3]} 28. Rxc6 {[%clk 0:01:08.2]} 28... Nxe4 {[%clk 0:01:08]} 29. Rb1
{[%clk 0:01:04.3]} 29... Ra8 {[%clk 0:00:59]} 30. g4 {[%clk 0:00:50.1]} 30...
Rxa5 {[%clk 0:00:56]} 31. Rc4 {[%clk 0:00:11.2]} 31... Nd2 {[%clk 0:00:51.8]}
32. Rc8+ {[%clk 0:00:11.2]} 32... Bf8 {[%clk 0:00:49.8]} 33. Rd1 {[%clk
0:00:12.2]} 33... Ra2 {[%clk 0:00:42.5]} 34. Nc3 {[%clk 0:00:13]} 34... Rc2
{[%clk 0:00:41.6]} 35. Kf2 {[%clk 0:00:07.9]} 35... Rxc3 {[%clk 0:00:38.9]} 0-1

[Event "*** MasterClass Titled Tuesday Blitz"]
[Site "Chess.com"]
[Date "2017.11.07"]
[Round "7"]
[White "Aygehovit1992"]
[Black "GrigorGrigorov"]
[Result "0-1"]
[WhiteElo "2528"]
[BlackElo "2629"]
[TimeControl "180+2"]
[EndTime "15:40:37 PST"]
[Termination "GrigorGrigorov won on time"]

1. e4 {[%clk 0:02:51.7]} 1... c5 {[%clk 0:03:00.4]} 2. Nf3 {[%clk 0:02:52.6]}
2... d6 {[%clk 0:03:01.4]} 3. d4 {[%clk 0:02:54]} 3... cxd4 {[%clk 0:03:02.3]}
4. Nxd4 {[%clk 0:02:55.9]} 4... Nf6 {[%clk 0:03:03.5]} 5. Nc3 {[%clk 0:02:57.5]}
5... a6 {[%clk 0:03:04.9]} 6. h3 {[%clk 0:02:57.8]} 6... e5 {[%clk 0:03:05.3]}
7. Nde2 {[%clk 0:02:57.6]} 7... h5 {[%clk 0:03:06.2]} 8. Bg5 {[%clk 0:02:56.5]}
8... Be6 {[%clk 0:03:06.4]} 9. Bxf6 {[%clk 0:02:54]} 9... Qxf6 {[%clk
0:03:06.6]} 10. Nd5 {[%clk 0:02:55.7]} 10... Qd8 {[%clk 0:03:06.5]} 11. Qd3
{[%clk 0:02:57.3]} 11... Nd7 {[%clk 0:03:03.4]} 12. O-O-O {[%clk 0:02:57.9]}
12... g6 {[%clk 0:02:57.5]} 13. Nec3 {[%clk 0:02:58.4]} 13... Bh6+ {[%clk
0:02:43.6]} 14. Kb1 {[%clk 0:02:59.3]} 14... Nc5 {[%clk 0:02:29.7]} 15. Qf3
{[%clk 0:02:51.8]} 15... b5 {[%clk 0:02:30.7]} 16. a3 {[%clk 0:02:45.4]} 16...
Rb8 {[%clk 0:02:28]} 17. g4 {[%clk 0:02:44.7]} 17... h4 {[%clk 0:02:25.2]} 18.
Nb4 {[%clk 0:02:32.8]} 18... Rb6 {[%clk 0:01:36.9]} 19. Ncd5 {[%clk 0:02:24.6]}
19... Bxd5 {[%clk 0:01:16.5]} 20. Nxd5 {[%clk 0:02:18.5]} 20... Rb7 {[%clk
0:01:17.3]} 21. Be2 {[%clk 0:01:49.5]} 21... Bg5 {[%clk 0:01:16.6]} 22. Qc3
{[%clk 0:01:45.1]} 22... O-O {[%clk 0:00:56.5]} 23. f4 {[%clk 0:01:32.7]} 23...
exf4 {[%clk 0:00:45.1]} 24. e5 {[%clk 0:01:31.2]} 24... Ne4 {[%clk 0:00:45.8]}
25. Qf3 {[%clk 0:01:30.1]} 25... Ng3 {[%clk 0:00:42.3]} 26. Rhe1 {[%clk
0:00:56.6]} 26... dxe5 {[%clk 0:00:40.7]} 27. Nxf4 {[%clk 0:00:37.2]} 27... Rd7
{[%clk 0:00:40.1]} 28. Nd5 {[%clk 0:00:36.3]} 28... e4 {[%clk 0:00:37.6]} 29.
Qb3 {[%clk 0:00:36.7]} 29... Re8 {[%clk 0:00:25.8]} 30. a4 {[%clk 0:00:37.4]}
30... Nxe2 {[%clk 0:00:22]} 31. Rxe2 {[%clk 0:00:39.3]} 31... Re5 {[%clk
0:00:23]} 32. axb5 {[%clk 0:00:18.7]} 32... axb5 {[%clk 0:00:23.8]} 33. c4
{[%clk 0:00:03.8]} 33... bxc4 {[%clk 0:00:23.9]} 34. Qxc4 {[%clk 0:00:03.7]}
34... e3 {[%clk 0:00:19.4]} 0-1

[Event "*** MasterClass Titled Tuesday Blitz"]
[Site "Chess.com"]
[Date "2017.11.07"]
[Round "7"]
[White "Vrolijk"]
[Black "wanyaland"]
[Result "0-1"]
[WhiteElo "2476"]
[BlackElo "2271"]
[TimeControl "180+2"]
[EndTime "15:40:52 PST"]
[Termination "wanyaland won by resignation"]

1. c4 {[%clk 0:03:01.9]} 1... c5 {[%clk 0:03:00.5]} 2. Nf3 {[%clk 0:03:01.5]}
2... Nc6 {[%clk 0:03:01.6]} 3. Nc3 {[%clk 0:03:02.8]} 3... g6 {[%clk 0:03:02.6]}
4. e3 {[%clk 0:03:00.9]} 4... Bg7 {[%clk 0:03:03.3]} 5. d4 {[%clk 0:03:02.2]}
5... Nf6 {[%clk 0:03:01.8]} 6. d5 {[%clk 0:03:02.6]} 6... Na5 {[%clk 0:03:02.5]}
7. Be2 {[%clk 0:03:03.1]} 7... d6 {[%clk 0:03:02.9]} 8. h3 {[%clk 0:03:02.2]}
8... O-O {[%clk 0:03:03.4]} 9. O-O {[%clk 0:03:03.7]} 9... a6 {[%clk 0:03:04.4]}
10. e4 {[%clk 0:03:01.9]} 10... e6 {[%clk 0:03:02.7]} 11. Rb1 {[%clk 0:02:49]}
11... exd5 {[%clk 0:03:02.3]} 12. exd5 {[%clk 0:02:50.9]} 12... Bf5 {[%clk
0:03:01.5]} 13. Bd3 {[%clk 0:02:51.3]} 13... Bxd3 {[%clk 0:02:46.5]} 14. Qxd3
{[%clk 0:02:53.2]} 14... Rb8 {[%clk 0:02:47.5]} 15. a3 {[%clk 0:02:42.6]} 15...
Rc8 {[%clk 0:02:44.4]} 16. Bf4 {[%clk 0:02:41.1]} 16... Qd7 {[%clk 0:02:37.3]}
17. Nd2 {[%clk 0:02:34.2]} 17... b6 {[%clk 0:02:16.5]} 18. b4 {[%clk 0:02:34.3]}
18... cxb4 {[%clk 0:02:06.9]} 19. axb4 {[%clk 0:02:36.2]} 19... Nb7 {[%clk
0:02:08.4]} 20. Na4 {[%clk 0:02:28.3]} 20... Qxa4 {[%clk 0:02:05.4]} 21. Nf3
{[%clk 0:02:10.3]} 21... a5 {[%clk 0:01:54.5]} 22. Nd4 {[%clk 0:02:07.1]} 22...
axb4 {[%clk 0:01:49.1]} 23. Nc6 {[%clk 0:02:08]} 23... Nc5 {[%clk 0:01:41.2]}
24. Qf3 {[%clk 0:02:06.4]} 24... Nfe4 {[%clk 0:01:10]} 25. Rxb4 {[%clk 0:02:03]}
25... Qa6 {[%clk 0:01:02.2]} 26. Ne7+ {[%clk 0:02:03.2]} 26... Kh8 {[%clk
0:01:02.1]} 27. Nxc8 {[%clk 0:02:04]} 27... Qxc8 {[%clk 0:01:02.5]} 28. Rxb6
{[%clk 0:02:03.6]} 28... Qc7 {[%clk 0:00:55.4]} 29. Rc6 {[%clk 0:02:03.3]} 29...
Qd7 {[%clk 0:00:55]} 30. Re1 {[%clk 0:02:03]} 30... f5 {[%clk 0:00:55.3]} 31.
Bxd6 {[%clk 0:01:53.9]} 31... Nxd6 {[%clk 0:00:46.8]} 32. Rxc5 {[%clk
0:01:48.8]} 32... Qa7 {[%clk 0:00:40.8]} 33. Rc6 {[%clk 0:01:48]} 33... Ne4
{[%clk 0:00:41.4]} 34. c5 {[%clk 0:01:28.7]} 34... Kg8 {[%clk 0:00:29.1]} 35.
Qd3 {[%clk 0:01:22.8]} 35... Qa2 {[%clk 0:00:21.7]} 36. Rf1 {[%clk 0:01:11.2]}
36... Qa4 {[%clk 0:00:17.3]} 37. d6 {[%clk 0:01:05]} 37... Qxc6 {[%clk
0:00:16.6]} 38. Qc4+ {[%clk 0:01:05.6]} 38... Kh8 {[%clk 0:00:17.5]} 39. Rb1
{[%clk 0:01:07.5]} 39... Qxc5 {[%clk 0:00:17]} 40. Qe2 {[%clk 0:01:03.9]} 40...
Qxd6 {[%clk 0:00:16.7]} 41. g3 {[%clk 0:01:03.4]} 41... Bd4 {[%clk 0:00:16.5]}
42. Kg2 {[%clk 0:00:47]} 42... Bxf2 {[%clk 0:00:16.4]} 43. Qb2+ {[%clk
0:00:48.4]} 43... Bd4 {[%clk 0:00:16.8]} 44. Qb3 {[%clk 0:00:48.3]} 0-1

[Event "*** MasterClass Titled Tuesday Blitz"]
[Site "Chess.com"]
[Date "2017.11.07"]
[Round "7"]
[White "VerdeNotte"]
[Black "nubair1198"]
[Result "0-1"]
[WhiteElo "2651"]
[BlackElo "2559"]
[TimeControl "180+2"]
[EndTime "15:41:11 PST"]
[Termination "nubair1198 won by resignation"]

1. e4 {[%clk 0:03:01.9]} 1... c6 {[%clk 0:03:01.4]} 2. c4 {[%clk 0:03:00.5]}
2... d5 {[%clk 0:03:03.3]} 3. exd5 {[%clk 0:03:01.8]} 3... cxd5 {[%clk
0:03:05.2]} 4. d4 {[%clk 0:03:03.1]} 4... Nf6 {[%clk 0:03:06.1]} 5. Nc3 {[%clk
0:03:04]} 5... Nc6 {[%clk 0:03:07.6]} 6. Nf3 {[%clk 0:03:04.3]} 6... Bg4 {[%clk
0:03:08.4]} 7. cxd5 {[%clk 0:03:04.9]} 7... Nxd5 {[%clk 0:03:09.6]} 8. Qb3
{[%clk 0:03:06]} 8... Bxf3 {[%clk 0:03:11]} 9. gxf3 {[%clk 0:03:06.8]} 9... e6
{[%clk 0:03:12.4]} 10. Qxb7 {[%clk 0:03:07.9]} 10... Nxd4 {[%clk 0:03:13.2]} 11.
Bb5+ {[%clk 0:03:09]} 11... Nxb5 {[%clk 0:03:14.7]} 12. Qc6+ {[%clk 0:03:00.5]}
12... Ke7 {[%clk 0:03:15.8]} 13. Qxb5 {[%clk 0:03:00.1]} 13... Qd7 {[%clk
0:03:16.6]} 14. Nxd5+ {[%clk 0:02:57.9]} 14... Qxd5 {[%clk 0:03:18]} 15. Qxd5
{[%clk 0:02:58.9]} 15... exd5 {[%clk 0:03:19.5]} 16. Be3 {[%clk 0:03:00.8]}
16... Ke6 {[%clk 0:03:21.1]} 17. Rc1 {[%clk 0:02:59.9]} 17... Bb4+ {[%clk
0:03:18.5]} 18. Ke2 {[%clk 0:03:00.7]} 18... Rhc8 {[%clk 0:03:18.3]} 19. Kd3
{[%clk 0:03:00.2]} 19... a5 {[%clk 0:03:04.5]} 20. Rhg1 {[%clk 0:02:45.8]} 20...
g6 {[%clk 0:03:02.4]} 21. a3 {[%clk 0:02:42]} 21... Bd6 {[%clk 0:03:01.9]} 22.
h3 {[%clk 0:02:42.9]} 22... Rxc1 {[%clk 0:02:48.5]} 23. Rxc1 {[%clk 0:02:42.9]}
23... Rb8 {[%clk 0:02:50.1]} 24. Bd4 {[%clk 0:02:40.4]} 24... Rb3+ {[%clk
0:02:35.8]} 25. Bc3 {[%clk 0:02:33.2]} 25... Bc5 {[%clk 0:02:26.3]} 26. Kc2
{[%clk 0:02:29.9]} 26... a4 {[%clk 0:02:26.9]} 27. Re1+ {[%clk 0:02:29.2]} 27...
Kd7 {[%clk 0:02:24.7]} 28. Re5 {[%clk 0:02:27.1]} 28... Kd6 {[%clk 0:02:22.2]}
29. Re8 {[%clk 0:02:14.2]} 29... Rb7 {[%clk 0:01:31.3]} 30. Be5+ {[%clk
0:01:51.4]} 30... Kd7 {[%clk 0:01:30.8]} 31. Ra8 {[%clk 0:01:51.7]} 31... Ra7
{[%clk 0:01:31.5]} 32. Rxa7+ {[%clk 0:01:32.3]} 32... Bxa7 {[%clk 0:01:32.3]}
33. b3 {[%clk 0:01:28.6]} 33... axb3+ {[%clk 0:01:31.2]} 34. Kxb3 {[%clk
0:01:29.8]} 34... Bxf2 {[%clk 0:01:32.9]} 35. Kc3 {[%clk 0:01:28.4]} 35... Kc6
{[%clk 0:01:30.6]} 36. Bd4 {[%clk 0:01:20.9]} 36... Be1+ {[%clk 0:01:32]} 37.
Kb3 {[%clk 0:01:21.1]} 37... h5 {[%clk 0:01:29.5]} 38. a4 {[%clk 0:01:21.6]}
38... f5 {[%clk 0:01:26.3]} 39. Kc2 {[%clk 0:01:22.5]} 39... Bb4 {[%clk
0:01:23.1]} 40. Kd3 {[%clk 0:01:22]} 40... g5 {[%clk 0:01:18]} 41. Ke3 {[%clk
0:01:12.2]} 41... Bc5 {[%clk 0:01:10]} 42. a5 {[%clk 0:01:10]} 42... g4 {[%clk
0:00:09.3]} 43. fxg4 {[%clk 0:00:49.9]} 43... fxg4 {[%clk 0:00:09.8]} 44. hxg4
{[%clk 0:00:41.9]} 44... Bxd4+ {[%clk 0:00:09.4]} 45. Kxd4 {[%clk 0:00:40.9]}
45... hxg4 {[%clk 0:00:11.3]} 46. Ke3 {[%clk 0:00:40.5]} 46... Kb5 {[%clk
0:00:07.4]} 47. Kf4 {[%clk 0:00:41.7]} 47... Kxa5 {[%clk 0:00:08.8]} 48. Kxg4
{[%clk 0:00:43.6]} 48... Kb4 {[%clk 0:00:10.2]} 49. Kf3 {[%clk 0:00:45.1]} 49...
Kc3 {[%clk 0:00:12.1]} 50. Ke2 {[%clk 0:00:46.5]} 50... d4 {[%clk 0:00:13.2]}
51. Kd1 {[%clk 0:00:47.9]} 51... Kd3 {[%clk 0:00:15.1]} 0-1